bitfinex-derivatives/quotes_ETHF0:USTF0_20240910
["timestamp","ask_amount","ask_price","bid_price","bid_amount"]
[1725976249261,0.4009,2334.2,2334.1,0.4284]
[1725976249457,0.4009,2334.2,2333.8,0.4043]
[1725976249666,0.8293,2334.2,2333.9,0.42844]
[1725976249863,0.8293,2334.2,2333.8,0.42845]
[1725976249864,0.42841,2334.1,2333.8,0.42845]
[1725976250166,0.42843,2334.0,2333.7,0.42847]
[1725976250357,0.42845,2333.9,2333.6,0.42848]
[1725976250661,0.42846,2333.8,2333.6,0.42848]
[1725976250867,10.68494063,2334.1,2333.7,0.42847]
[1725976251054,10.68494063,2334.1,2333.4,0.4043]
[1725976251360,0.42845,2333.9,2333.4,0.4043]
[1725976251566,0.42843,2334.0,2333.5,0.42851]
[1725976251861,10.68494063,2334.1,2333.5,1.07129]
[1725976252060,8.53387,2334.5,2333.5,4.36129]
[1725976252061,0.42834,2334.5,2333.5,4.36129]
[1725976252265,0.3929,2334.5,2333.7,1.0712]
[1725976252563,10.68349039,2334.3,2334.2,0.42837]
[1725976252766,10.68349039,2334.4,2334.3,0.42837]
[1725976253062,0.3929,2334.5,2334.4,0.42835]
[1725976253261,0.3938,2334.9,2334.5,0.42833]
[1725976253460,0.82116,2334.9,2334.6,0.4283]
[1725976253763,10.58123378,2334.8,2334.6,0.4283]
[1725976254162,11.00951378,2334.8,2334.6,0.4283]
[1725976254760,11.00951378,2334.8,2334.7,0.42829]
[1725976254761,10.58123378,2334.8,2334.7,0.42829]
[1725976254961,0.3929,2334.9,2334.8,0.42828]
[1725976255169,0.3929,2334.9,2334.3,42.08393397]
[1725976255170,4.6761,2334.9,2334.3,41.01303397]
[1725976255362,4.6761,2334.9,2334.5,0.42833]
[1725976255363,0.42829,2334.8,2334.5,0.42833]
[1725976255659,0.42829,2334.8,2333.7,4.4626]
[1725976255660,5.35397,2334.7,2333.7,4.4626]
[1725976255863,0.42837,2334.3,2333.8,0.3838]
[1725976256053,10.68707629,2334.6,2333.8,0.3838]
[1725976256257,0.82914,2334.5,2334.2,0.42838]
[1725976256763,0.82914,2334.5,2333.9,40.8]
[1725976256764,10.68707629,2334.4,2333.9,40.8]
[1725976256966,0.42839,2334.2,2333.9,40.8]
[1725976257558,0.82808,2334.3,2334.0,0.42842]
[1725976257759,0.82808,2334.3,2334.1,0.4284]
[1725976258067,0.3997,2334.3,2334.2,0.42839]
[1725976258864,0.3997,2334.3,2334.1,0.4284]
[1725976259068,0.82807,2334.3,2334.1,0.4284]
[1725976259766,10.68707629,2334.4,2333.9,40.8]
[1725976259767,10.68707629,2334.4,2334.3,0.42837]
[1725976260071,0.3823,2334.8,2334.3,0.20966269]
[1725976260263,0.3823,2334.8,2334.6,0.4283]
[1725976260461,0.81058,2334.8,2334.6,0.4283]
[1725976260672,0.3823,2334.8,2334.4,0.3905]
[1725976260969,0.81058,2334.8,2334.6,0.42831]
[1725976261470,0.42829,2334.7,2334.5,0.42832]
[1725976261669,0.3823,2334.8,2334.6,0.42831]
[1725976262065,0.81058,2334.8,2334.5,0.42832]
[1725976262263,0.81058,2334.8,2334.4,0.3905]
[1725976262264,0.3823,2334.8,2334.4,0.3905]
[1725976262470,10.48993125,2334.7,2334.3,0.42836]
[1725976262762,0.42833,2334.6,2334.3,0.42835]
[1725976263066,10.86933125,2334.7,2334.0,0.3697]
[1725976263279,11.81641445,2335.2,2334.0,0.3697]
[1725976263280,1.1110752,2335.3,2334.5,1.07083]
[1725976263468,0.3752,2335.6,2334.6,5.54896]
[1725976263666,0.3752,2335.6,2335.3,0.42818]
[1725976263866,10.72456607,2335.5,2335.4,0.42815]
[1725976264373,0.3752,2335.6,2335.3,0.42818]
[1725976264573,0.3752,2335.6,2335.2,0.42819]
[1725976264877,0.3752,2335.6,2335.0,40.8]
[1725976264878,0.42816,2335.5,2335.1,0.42822]
[1725976265179,0.80334,2335.6,2335.1,0.42822]
[1725976265372,0.3752,2335.6,2335.0,40.8]
[1725976265565,0.3752,2335.6,2335.1,0.4027]
[1725976265969,0.3752,2335.6,2335.3,0.42818]
[1725976266160,0.3752,2335.6,2335.2,0.42819]
[1725976266375,0.3752,2335.6,2335.1,0.4027]
[1725976266571,0.3752,2335.6,2335.3,0.42817]
[1725976266770,0.80333,2335.6,2335.1,0.4027]
[1725976266980,0.3752,2335.6,2335.3,0.42817]
[1725976267566,0.3752,2335.6,2335.2,0.42819]
[1725976268168,0.42816,2335.5,2335.1,0.4027]
[1725976268469,0.80334,2335.6,2335.1,0.83091]
[1725976268682,0.80334,2335.6,2335.2,0.4282]
[1725976268980,0.3752,2335.6,2335.1,0.4027]
[1725976269173,0.3752,2335.6,2335.3,0.42817]
[1725976269375,0.3752,2335.6,2335.2,0.42819]
[1725976269670,0.80334,2335.6,2335.2,0.4282]
[1725976269976,0.3752,2335.6,2335.1,0.4027]
[1725976270171,0.3752,2335.6,2335.2,0.4282]
[1725976270172,0.80334,2335.6,2335.2,0.4282]
[1725976270369,0.42817,2335.4,2335.1,0.4027]
[1725976270575,0.42816,2335.5,2335.1,0.83092]
[1725976270769,0.42817,2335.4,2335.1,0.4027]
[1725976271168,0.3752,2335.6,2335.2,0.4282]
[1725976271169,0.42816,2335.5,2335.2,0.4282]
[1725976271666,0.3752,2335.6,2335.3,0.42818]
[1725976272066,0.3752,2335.6,2335.4,0.42816]
[1725976272269,0.3752,2335.6,2335.1,0.4027]
[1725976272468,9.12841445,2336.1,2335.1,0.4027]
[1725976272469,6.94948965,2336.1,2335.1,0.4027]
[1725976272675,0.3907,2336.1,2336.0,0.42806]
[1725976272873,0.3907,2336.1,2335.8,0.42808]
[1725976273082,0.3907,2336.1,2335.6,0.4011]
[1725976273279,1.07015,2336.0,2335.3,4.082]
[1725976273579,11.75969549,2336.0,2335.2,0.768]
[1725976273774,0.42809,2335.9,2335.2,0.768]
[1725976273978,0.4281,2335.8,2335.2,0.768]
[1725976274176,0.42811,2335.8,2335.4,0.42815]
[1725976274372,11.10702846,2335.8,2335.5,0.42814]
[1725976274574,10.67891846,2335.8,2335.2,0.4011]
[1725976274779,0.42813,2335.6,2335.3,0.42817]
[1725976274975,0.42813,2335.6,2335.4,0.42816]
[1725976275276,0.42812,2335.7,2335.2,0.4011]
[1725976275476,0.8041,2336.0,2335.7,0.42811]
[1725976275676,10.8326696,2335.9,2335.7,0.4281]
[1725976275879,0.42808,2335.9,2335.6,0.42812]
[1725976276381,0.42808,2335.9,2335.7,0.42811]
[1725976276766,4.70887,2335.9,2335.7,0.42811]
[1725976277185,4.2808,2335.9,2335.6,0.42813]
[1725976277377,0.4004,2336.0,2335.5,0.42813]
[1725976277577,1.07019,2335.9,2335.2,0.4011]
[1725976277775,10.90071534,2335.9,2335.5,0.42814]
[1725976277975,10.90071534,2335.9,2335.2,0.4011]
[1725976278176,0.42808,2335.9,2335.7,0.42811]
[1725976279285,0.82847,2336.0,2335.8,0.42809]
[1725976279485,0.42808,2335.9,2335.7,0.4281]
[1725976280081,0.42809,2335.8,2335.2,1.47158]
[1725976280381,0.42809,2335.9,2335.7,0.42811]
[1725976280582,0.42809,2335.8,2335.7,0.42811]
[1725976280782,4.6812,2336.0,2335.7,0.42811]
[1725976280984,0.42809,2335.9,2335.7,0.42811]
[1725976281373,0.82846,2336.0,2335.8,0.42808]
[1725976281682,0.4004,2336.0,2335.8,0.42808]
[1725976281879,0.42807,2335.9,2335.8,0.42808]
[1725976282081,0.42807,2335.9,2335.7,0.42811]
[1725976282482,0.42806,2336.0,2335.9,0.42807]
[1725976282782,0.3907,2336.1,2335.6,1.07033]
[1725976282989,0.3907,2336.1,2335.9,0.42807]
[1725976283283,0.42806,2336.0,2335.9,0.42807]
[1725976283586,0.42803,2336.2,2336.0,0.42806]
[1725976283888,0.3785,2336.5,2336.4,0.42798]
[1725976284185,0.42799,2336.4,2336.1,0.42802]
[1725976284386,0.42799,2336.4,2335.9,0.3677]
[1725976284571,0.428,2336.3,2336.1,0.42803]
[1725976284777,0.3955,2336.4,2336.2,0.42802]
[1725976284977,0.82348,2336.4,2336.2,0.42802]
[1725976285173,0.428,2336.3,2336.1,0.42804]
[1725976285581,0.82349,2336.4,2336.2,0.42802]
[1725976285984,0.42799,2336.4,2336.2,0.42802]
[1725976286182,0.3785,2336.5,2335.9,0.58670654]
[1725976286383,0.80647,2336.5,2336.3,0.42799]
[1725976286578,0.80647,2336.5,2335.9,0.58670654]
[1725976286780,0.80647,2336.5,2336.3,0.428]
[1725976286978,0.42799,2336.4,2336.2,0.42801]
[1725976287285,0.80647,2336.5,2336.3,0.428]
[1725976289377,0.3785,2336.5,2336.4,0.42798]
[1725976289685,0.3785,2336.5,2336.0,41.87013]
[1725976289889,0.42794,2336.7,2336.5,0.42796]
[1725976290082,0.42793,2336.7,2336.5,0.42796]
[1725976290277,0.3729,2336.8,2336.4,0.42797]
[1725976290278,0.42795,2336.6,2336.4,0.42797]
[1725976290485,0.42795,2336.6,2336.0,40.8]
[1725976290486,0.42796,2336.5,2336.3,0.42799]
[1725976290784,0.42796,2336.6,2336.0,41.87013]
[1725976291089,0.42797,2336.5,2336.3,0.42799]
[1725976291689,10.71852393,2336.7,2336.1,1.0701]
[1725976291992,0.42793,2336.7,2336.1,4.3601]
[1725976292292,0.42793,2336.7,2336.5,0.42796]
[1725976292489,0.3729,2336.8,2336.0,40.8]
[1725976292490,0.42795,2336.6,2336.0,40.8]
[1725976292697,10.4668768,2336.6,2335.9,0.3677]
[1725976292987,0.42805,2336.1,2335.8,0.42808]
[1725976293298,0.7907,2336.5,2336.0,0.42805]
[1725976293484,0.7907,2336.5,2336.1,0.42803]
[1725976293485,0.42798,2336.4,2336.1,0.42803]
[1725976293679,0.42798,2336.4,2336.0,0.42805]
[1725976293680,10.97754791,2336.3,2336.0,0.42805]
[1725976294088,0.42802,2336.3,2336.1,0.42804]
[1725976294789,0.42802,2336.3,2336.0,0.42805]
[1725976294790,0.428,2336.3,2336.0,0.42805]
[1725976294991,0.7907,2336.5,2335.7,0.21788283]
[1725976295191,0.4017,2336.5,2335.6,3.29]
[1725976295392,0.82966,2336.5,2336.3,0.42799]
[1725976295691,0.4017,2336.5,2336.4,0.42798]
[1725976295892,0.3729,2336.8,2336.0,1.07015]
[1725976296079,0.42793,2336.7,2336.4,0.42798]
[1725976296281,0.42793,2336.7,2336.0,1.28471553]
[1725976296495,0.42793,2336.7,2336.4,0.42797]
[1725976297085,0.3729,2336.8,2336.4,0.42797]
[1725976297392,0.42794,2336.7,2336.4,0.42797]
[1725976297593,0.80082,2336.8,2336.5,0.42796]
[1725976297782,0.42793,2336.7,2336.5,0.42796]
[1725976298292,0.42794,2336.7,2336.4,0.42798]
[1725976298494,0.3729,2336.8,2336.0,1.28468553]
[1725976298701,0.42793,2336.7,2336.4,0.42797]
[1725976298995,0.42793,2336.7,2336.4,0.63966695]
[1725976299184,0.42795,2336.6,2336.4,0.42797]
[1725976299385,0.42794,2336.7,2336.4,0.63825407]
[1725976299985,0.80082,2336.8,2336.5,0.42796]
[1725976300190,0.3729,2336.8,2336.5,0.42796]
[1725976300407,0.3729,2336.8,2336.5,0.81825]
[1725976300893,0.42793,2336.7,2336.5,0.81825]
[1725976301495,0.80082,2336.8,2336.6,0.42795]
[1725976301692,0.3729,2336.8,2336.5,0.3903]
[1725976301893,0.80082,2336.8,2336.6,0.42794]
[1725976302089,0.42793,2336.7,2336.6,0.42794]
[1725976302293,4.6521,2336.8,2336.0,4.082]
[1725976302599,1.06992,2336.5,2336.0,4.4723]
[1725976302890,0.3738,2336.4,2336.0,4.082]
[1725976303100,0.42802,2336.2,2336.0,4.51005]
[1725976303287,0.42804,2336.1,2336.0,4.082]
[1725976303493,0.3774,2336.1,2336.0,4.51006]
[1725976303699,0.80544,2336.1,2336.0,4.082]
[1725976303994,0.80544,2336.1,2335.9,0.42807]
[1725976304194,0.3774,2336.1,2335.7,0.4281]
[1725976304395,0.3774,2336.1,2335.6,0.3719]
[1725976304396,0.80545,2336.1,2335.6,0.3719]
[1725976304589,0.3774,2336.1,2335.6,0.3719]
[1725976304785,0.3774,2336.1,2336.0,0.42806]
[1725976304992,0.7457,2336.4,2336.0,0.42806]
[1725976304993,0.42801,2336.3,2336.0,0.42806]
[1725976305186,1.16839,2336.4,2335.9,0.21394038]
[1725976305386,0.3666,2336.4,2336.3,0.428]
[1725976306298,0.3738,2336.7,2336.5,0.42796]
[1725976306488,0.42791,2336.8,2336.6,0.42794]
[1725976306900,0.3666,2336.9,2336.5,0.42795]
[1725976307099,0.42791,2336.8,2336.5,0.42795]
[1725976307295,0.42791,2336.8,2336.6,0.42793]
[1725976307602,0.42791,2336.8,2336.5,0.42795]
[1725976308500,0.7945,2336.9,2336.6,0.42795]
[1725976308893,3.13440445,2337.1,2336.7,3.29]
[1725976308894,1.1110752,2337.1,2336.7,3.29]
[1725976309093,2.76872575,2337.5,2336.7,3.29]
[1725976309094,1.1110752,2337.5,2337.0,3.29]
[1725976309297,1.1110752,2337.6,2337.3,3.29]
[1725976309498,1.1110752,2337.9,2337.1,0.42785]
[1725976309801,1.1110752,2337.8,2337.0,3.29]
[1725976310191,1.5107752,2337.9,2337.0,3.29]
[1725976310398,1.8849752,2338.0,2337.3,3.29]
[1725976310700,0.7739,2338.0,2337.4,0.7824]
[1725976310902,1.20159,2338.0,2337.4,0.7824]
[1725976311194,0.7739,2338.0,2337.6,0.42776]
[1725976311696,0.42774,2337.8,2337.4,0.7824]
[1725976311891,10.93276119,2337.9,2337.4,0.81079]
[1725976312090,0.42774,2337.8,2337.4,0.81079]
[1725976312287,10.93276119,2337.9,2337.5,0.42778]
[1725976312288,11.36048119,2337.9,2337.5,0.42778]
[1725976312688,11.36048119,2337.9,2337.5,0.42777]
[1725976312689,10.93276119,2337.9,2337.5,0.42777]
[1725976312892,11.36048119,2337.9,2337.5,0.42777]
[1725976313493,10.93276119,2337.9,2337.0,7.372]
[1725976313691,10.93276119,2337.9,2337.2,0.42782]
[1725976313900,0.42778,2337.6,2337.2,0.42782]
[1725976314100,0.42778,2337.6,2337.1,0.3756]
[1725976314101,0.3747,2337.8,2337.1,0.3756]
[1725976314295,0.42778,2337.5,2337.2,0.42782]
[1725976314495,0.42777,2337.6,2337.2,0.42782]
[1725976314792,0.42777,2337.6,2337.3,0.42781]
[1725976314991,10.53597834,2337.7,2337.1,0.3756]
[1725976315197,0.42777,2337.6,2337.3,0.42781]
[1725976315602,10.96372834,2337.7,2337.4,0.42779]
[1725976315794,0.42776,2337.6,2337.3,0.42781]
[1725976316100,0.42779,2337.5,2337.2,0.42783]
[1725976316699,0.42778,2337.5,2337.2,0.42783]
[1725976316902,10.53597834,2337.7,2337.1,0.80344]
[1725976317104,0.42781,2337.4,2337.1,0.80344]
[1725976317291,0.42779,2337.5,2337.2,0.42783]
[1725976317491,0.42777,2337.6,2337.1,0.3756]
[1725976317691,10.53597834,2337.7,2337.1,0.3756]
[1725976317692,0.42778,2337.5,2337.1,0.3756]
[1725976317892,0.42778,2337.5,2337.3,0.42781]
[1725976318101,10.53597834,2337.7,2337.2,0.42782]
[1725976318297,0.4278,2337.5,2337.2,0.42783]
[1725976318495,0.4278,2337.4,2337.2,0.42783]
[1725976318700,10.53597834,2337.7,2337.2,0.42783]
[1725976318904,0.4278,2337.4,2337.2,0.42783]
[1725976319102,0.42778,2337.5,2337.3,0.42781]
[1725976319706,10.96373834,2337.7,2337.4,0.42778]
[1725976320005,10.53597834,2337.7,2337.1,1.06964]
[1725976320210,0.42774,2337.8,2337.6,0.42775]
[1725976320508,0.42773,2337.8,2337.6,0.42775]
[1725976320805,4.9469,2338.0,2337.4,0.21319844]
[1725976321104,0.7739,2338.0,2337.5,0.3912]
[1725976321500,0.7739,2338.0,2337.8,0.42772]
[1725976321501,1.2016,2338.0,2337.8,0.42772]
[1725976321901,0.7739,2338.0,2337.8,0.42772]
[1725976322200,1.2016,2338.0,2337.8,0.42771]
[1725976322503,1.2016,2338.0,2337.7,0.42773]
[1725976322802,1.2016,2338.0,2337.5,0.7858]
[1725976323007,1.2016,2338.0,2337.8,0.42772]
[1725976323208,0.42762,2338.4,2338.0,0.42768]
[1725976323397,0.3907,2338.4,2338.1,3.29]
[1725976323593,0.42758,2338.6,2338.2,0.3912]
[1725976323793,0.42758,2338.7,2338.2,0.81884]
[1725976323998,0.42758,2338.7,2338.3,0.42763]
[1725976324205,4.99625,2338.8,2338.3,0.42763]
[1725976324607,4.5687,2338.8,2338.2,0.3912]
[1725976324807,0.4276,2338.5,2338.2,0.3912]
[1725976325008,0.42759,2338.6,2338.1,0.42766]
[1725976325707,0.42759,2338.6,2338.2,0.42765]
[1725976325909,11.28437726,2338.7,2338.2,0.42765]
[1725976326307,11.28437726,2338.7,2338.3,0.42763]
[1725976326501,11.28437726,2338.7,2337.9,0.381]
[1725976326502,11.28437726,2338.7,2338.2,0.42764]
[1725976327210,0.42758,2338.6,2338.2,0.42764]
[1725976327410,0.42759,2338.6,2337.9,0.381]
[1725976327607,10.59159628,2338.5,2337.7,0.42774]
[1725976327810,10.59159628,2338.5,2337.5,0.3946]
[1725976327811,1.06905,2338.4,2337.5,0.3946]
[1725976328009,1.06905,2338.4,2337.6,0.42776]
[1725976328010,0.42769,2338.0,2337.6,0.42776]
[1725976328405,0.42769,2338.0,2337.7,0.42774]
[1725976328609,0.42769,2338.0,2337.5,0.3946]
[1725976328610,0.42769,2338.0,2337.6,0.42775]
[1725976328815,0.42771,2337.9,2337.6,0.42775]
[1725976329011,1.47235,2338.2,2337.4,1.02496361]
[1725976329212,0.42774,2337.8,2337.4,1.02496361]
[1725976329511,1.06919,2338.1,2337.1,4.082]
[1725976329512,0.42776,2337.6,2337.3,0.42781]
[1725976329709,0.7526,2337.7,2337.0,0.3865]
[1725976329910,0.7526,2337.7,2337.0,0.81436]
[1725976329911,0.4278,2337.4,2337.0,0.81436]
[1725976330106,10.93176073,2337.5,2337.4,0.4278]
[1725976330303,0.7526,2337.7,2337.1,0.3679]
[1725976330510,0.7526,2337.7,2337.1,0.7626]
[1725976330808,0.7526,2337.7,2337.5,0.42778]
[1725976331006,0.7526,2337.7,2337.4,0.21889598]
[1725976331312,0.7526,2337.7,2337.0,3.6765]
[1725976331513,0.42779,2337.5,2337.1,0.42785]
[1725976331720,10.69268699,2337.6,2337.2,0.42783]
[1725976331908,0.42778,2337.5,2337.1,0.42784]
[1725976332105,0.42786,2337.1,2336.8,4.082]
[1725976332307,0.42786,2337.1,2336.7,0.42792]
[1725976332609,0.3862,2337.0,2336.7,0.42792]
[1725976332924,0.3862,2337.0,2336.6,0.3733]
[1725976333212,0.3862,2337.0,2336.3,4.082]
[1725976333413,0.7581,2337.0,2336.8,0.4279]
[1725976334013,4.5539,2337.4,2336.4,44.4931]
[1725976334014,4.98171,2337.4,2336.9,0.42789]
[1725976334217,4.5539,2337.4,2337.1,0.42784]
[1725976334409,4.5539,2337.4,2337.0,0.42786]
[1725976334410,4.173,2337.4,2337.0,0.42786]
[1725976334610,4.173,2337.4,2336.4,44.4931]
[1725976334611,4.173,2337.4,2337.1,0.42785]
[1725976335113,4.6008,2337.4,2337.0,0.42786]
[1725976335308,4.6008,2337.4,2337.1,0.42785]
[1725976335309,4.173,2337.4,2337.1,0.42785]
[1725976335609,4.6008,2337.4,2337.0,0.42786]
[1725976335805,4.173,2337.4,2337.1,0.42784]
[1725976336007,4.6008,2337.4,2337.1,0.42784]
[1725976336230,4.173,2337.4,2337.1,0.42784]
[1725976336525,4.173,2337.4,2336.4,44.4931]
[1725976336526,0.42783,2337.3,2336.9,0.42788]
[1725976336811,4.173,2337.4,2337.0,0.42787]
[1725976337018,4.173,2337.4,2337.2,0.42783]
[1725976337316,0.7439,2337.6,2336.5,1.06992]
[1725976337317,0.42782,2337.3,2337.0,0.42787]
[1725976337514,0.42784,2337.2,2336.9,0.42788]
[1725976337724,0.3905,2337.1,2336.9,0.42788]
[1725976338319,4.2792,2337.0,2336.6,4.082]
[1725976338507,0.3686,2337.0,2336.9,0.42789]
[1725976338707,1.4770752,2337.7,2337.0,0.42786]
[1725976338918,1.4770752,2337.7,2337.1,0.42785]
[1725976338919,0.79641,2337.4,2337.1,0.42785]
[1725976339110,11.61518586,2337.4,2336.6,1.06987]
[1725976339417,0.79641,2337.4,2337.1,0.42785]
[1725976340021,0.79641,2337.4,2337.2,0.42783]
[1725976340217,0.3686,2337.4,2336.6,1.06987]
[1725976340417,0.3686,2337.4,2337.2,0.42783]
[1725976340715,0.3905,2337.6,2337.0,3.29]
[1725976340918,5.35691,2337.9,2337.2,1.0696]
[1725976341119,5.35691,2337.9,2337.6,0.42775]
[1725976341310,0.7562,2337.9,2337.5,0.42777]
[1725976341822,0.7562,2337.9,2337.6,0.42776]
[1725976342014,1.18392,2337.9,2337.7,0.42774]
[1725976342414,1.18392,2337.9,2337.2,1.06958]
[1725976342415,0.7562,2337.9,2337.2,1.06958]
[1725976342719,0.42774,2337.8,2337.6,0.42775]
[1725976342914,0.7562,2337.9,2337.8,0.42773]
[1725976343115,0.3842,2337.9,2337.8,0.42773]
[1725976343415,0.42769,2338.0,2337.8,0.42772]
[1725976343621,0.42769,2338.0,2337.9,0.42771]
[1725976343815,11.2626777,2338.2,2337.4,1.81861]
[1725976344017,1.22646,2338.2,2338.0,0.42769]
[1725976344226,0.7988,2338.2,2338.1,0.42767]
[1725976344419,0.82646,2338.2,2337.7,40.8]
[1725976344619,0.82646,2338.2,2338.0,0.42769]
[1725976344819,0.3988,2338.2,2337.7,40.8]
[1725976345025,0.82645,2338.2,2337.9,0.42769]
[1725976345218,0.42767,2338.1,2337.8,0.42771]
[1725976345726,0.82646,2338.2,2337.9,0.42771]
[1725976346117,4.2768,2338.1,2337.7,40.8]
[1725976346322,10.61414744,2338.1,2337.4,0.3665]
[1725976346523,0.42775,2337.7,2337.5,0.42777]
[1725976346819,1.06928,2337.9,2337.2,0.3841]
[1725976347028,0.42777,2337.6,2337.4,0.42779]
[1725976347416,0.3747,2338.0,2337.2,0.3841]
[1725976347631,0.42772,2337.9,2337.6,0.42774]
[1725976347918,0.42775,2337.7,2337.5,0.42777]
[1725976348314,10.67779434,2337.9,2337.3,3.29]
[1725976348519,0.42777,2337.6,2337.2,0.3841]
[1725976348818,0.42777,2337.6,2337.4,0.4278]
[1725976349221,0.42776,2337.7,2337.5,0.42778]
[1725976349417,0.3747,2338.0,2337.2,3.6741]
[1725976349623,0.42772,2337.9,2337.7,0.42774]
[1725976350128,0.8024,2338.0,2337.8,0.42772]
[1725976350328,4.173,2338.1,2337.6,0.21680524]
[1725976350628,0.82647,2338.2,2337.9,0.4277]
[1725976350921,0.82647,2338.2,2337.9,0.63772272]
[1725976351123,0.3988,2338.2,2338.1,0.42767]
[1725976351326,0.3896,2338.4,2338.2,0.42765]
[1725976351327,0.81722,2338.4,2338.2,0.42765]
[1725976351520,0.42761,2338.5,2338.2,0.42765]
[1725976351824,0.42762,2338.4,2338.2,0.42765]
[1725976352027,0.42761,2338.5,2338.2,0.64475478]
[1725976352425,4.5652,2338.6,2338.2,0.21710478]
[1725976352633,4.99278,2338.6,2338.3,0.42762]
[1725976352931,4.99278,2338.6,2338.4,0.42761]
[1725976352932,0.3922,2338.6,2338.4,0.42761]
[1725976353134,0.3922,2338.6,2338.3,0.42762]
[1725976353423,0.3922,2338.6,2338.2,0.4004]
[1725976353631,0.3922,2338.6,2338.3,0.42763]
[1725976353823,0.42758,2338.7,2338.2,0.4004]
[1725976354019,0.4,2338.7,2338.1,0.42766]
[1725976354219,0.42761,2338.5,2338.1,0.42766]
[1725976354426,11.98992002,2338.7,2338.0,0.42768]
[1725976354630,1.1110752,2338.5,2338.0,0.42769]
[1725976354927,1.1110752,2338.5,2338.0,0.42768]
[1725976355126,0.42763,2338.4,2338.0,0.42768]
[1725976355320,0.42768,2338.1,2337.8,4.91011]
[1725976355524,0.42768,2338.1,2337.8,0.82811]
[1725976355725,0.3755,2338.0,2337.8,0.42771]
[1725976356034,0.3755,2338.0,2337.5,0.82987]
[1725976356326,0.3755,2338.0,2337.3,1.878975]
[1725976356327,0.42774,2337.8,2337.1,1.117175]
[1725976356529,0.42775,2337.7,2337.2,1.02688004]
[1725976356830,1.4865752,2338.0,2337.3,0.42781]
[1725976357034,0.42776,2337.6,2337.3,0.42781]
[1725976357631,2.1803952,2337.9,2337.2,0.4021]
[1725976357929,0.42776,2337.7,2337.3,0.42782]
[1725976358134,0.42774,2337.7,2337.3,0.42782]
[1725976358632,0.42775,2337.7,2337.3,0.42781]
[1725976359630,0.42777,2337.6,2337.3,0.42781]
[1725976360337,0.42777,2337.6,2337.3,0.42782]
[1725976360634,0.42777,2337.6,2337.3,0.64527734]
[1725976360831,11.6731885,2337.8,2337.3,0.42781]
[1725976361039,0.42776,2337.6,2337.3,0.42781]
[1725976361221,11.6731885,2337.8,2336.9,42.647075]
[1725976361420,0.42781,2337.4,2337.1,0.42785]
[1725976361621,0.4278,2337.4,2337.1,0.42784]
[1725976362028,0.42776,2337.6,2337.3,0.42781]
[1725976362635,0.42777,2337.6,2337.3,0.63771961]
[1725976362826,0.4278,2337.4,2337.3,0.20990961]
[1725976363029,0.4278,2337.4,2337.2,0.42783]
[1725976363637,0.42777,2337.6,2337.3,0.4278]
[1725976363934,0.42777,2337.6,2337.4,0.4278]
[1725976364331,0.42779,2337.5,2337.3,0.42781]
[1725976364528,0.42779,2337.5,2337.3,0.64666377]
[1725976364728,0.42779,2337.5,2337.3,0.21885377]
[1725976365033,0.42779,2337.5,2337.2,0.42782]
[1725976365232,0.3939,2337.4,2337.3,0.42782]
[1725976365831,0.3939,2337.4,2336.9,0.7299]
[1725976366034,0.3939,2337.4,2337.3,0.42782]
[1725976366241,0.3939,2337.4,2337.3,0.63807197]
[1725976367830,0.3939,2337.4,2336.9,1.79961]
[1725976367831,0.42783,2337.3,2337.1,0.42784]
[1725976368038,0.3939,2337.4,2336.9,0.3656]
[1725976368235,0.42783,2337.3,2337.1,0.42785]
[1725976368429,0.42782,2337.3,2337.1,0.42785]
[1725976368632,0.42783,2337.3,2336.9,3.0356]
[1725976368934,0.42783,2337.3,2337.2,0.42784]
[1725976369134,0.42783,2337.3,2336.9,3.0356]
[1725976369336,0.42783,2337.3,2337.1,0.42784]
[1725976369526,0.3939,2337.4,2336.9,3.0356]
[1725976369731,0.42784,2337.2,2337.1,0.42785]
[1725976370031,1.06955,2337.3,2336.9,0.3656]
[1725976370230,0.42786,2337.1,2336.9,0.79347]
[1725976370425,0.42786,2337.1,2336.9,0.42787]
[1725976370735,0.42786,2337.1,2337.0,0.42787]
[1725976372237,0.79595,2337.2,2337.0,0.42787]
[1725976372427,1.9070752,2337.4,2337.1,0.42785]
[1725976372628,0.42785,2337.2,2337.0,0.42786]
[1725976372829,0.42785,2337.2,2337.1,0.42785]
[1725976374242,1.5049752,2337.4,2337.2,0.42783]
[1725976374243,0.42782,2337.3,2337.2,0.42783]
[1725976374445,0.42782,2337.3,2337.1,2.67]
[1725976375033,0.8217,2337.4,2337.3,0.42782]
[1725976375233,0.42782,2337.3,2337.2,0.42783]
[1725976376333,0.3939,2337.4,2337.2,0.42783]
[1725976376542,0.8217,2337.4,2337.3,0.42782]
[1725976377345,0.3939,2337.4,2337.3,0.42782]
[1725976377740,0.3939,2337.4,2337.3,3.31296143]
[1725976377944,4.6723,2337.4,2336.9,1.06971]
[1725976378145,1.46341,2337.4,2337.0,0.42786]
[1725976378345,0.42782,2337.3,2337.1,0.42784]
[1725976378544,0.42785,2337.2,2336.8,2.67]
[1725976378842,1.46341,2337.4,2336.8,2.67]
[1725976379034,0.42784,2337.2,2337.0,0.42786]
[1725976379240,0.42784,2337.2,2337.1,0.42785]
[1725976380245,0.42787,2337.1,2337.0,0.42787]
[1725976380444,0.42786,2337.1,2337.0,0.42787]
[1725976380644,4.70706,2337.1,2337.0,0.42787]
[1725976381045,0.42788,2337.0,2336.9,0.42788]